fUSD/lending_fUSD_20250812
["ID","MTS","AMOUNT","RATE_DAILY","PERIOD"]
[378691649,1754958755499,-413.51438492,0.00032876,2]
[378691650,1754958755508,-336.28,0.00032877,2]
[378691651,1754958755518,-930.0,0.00032877,2]
[378691652,1754958755527,-500.0,0.00032877,7]
[378691653,1754958755536,-500.0,0.00032877,7]
[378691654,1754958755546,-500.0,0.00032877,7]
[378691655,1754958755555,-500.0,0.00032877,7]
[378691656,1754958755565,-500.0,0.00032877,7]
[378691657,1754958755574,-500.0,0.00032877,7]
[378691658,1754958755583,-500.0,0.00032877,7]
[378691659,1754958755592,-500.0,0.00032877,7]
[378691660,1754958755602,-500.0,0.00032877,7]
[378691661,1754958755611,-500.0,0.00032877,7]
[378691662,1754958755620,-500.0,0.00032877,7]
[378691663,1754958755629,-500.0,0.00032877,7]
[378691664,1754958755638,-500.0,0.00032877,7]
[378691665,1754958755648,-624.34278642,0.00032877,7]
[378691666,1754958755658,-500.0,0.00032877,7]
[378691667,1754958755667,-500.0,0.00032877,7]
[378691668,1754958755677,-569.37142071,0.00032877,7]
[378691669,1754958755686,-500.0,0.00032877,7]
[378691670,1754958755696,-500.0,0.00032877,7]
[378691671,1754958755706,-500.0,0.00032877,7]
[378691672,1754958755714,-570.96643787,0.00032877,7]
[378691673,1754958755724,-500.0,0.00032877,7]
[378691674,1754958755733,-500.0,0.00032877,7]
[378691675,1754958755742,-500.0,0.00032877,7]
[378691676,1754958755752,-500.0,0.00032877,7]
[378691677,1754958755762,-500.0,0.00032877,7]
[378691678,1754958755771,-500.0,0.00032877,7]
[378691679,1754958755780,-500.0,0.00032877,7]
[378691680,1754958755789,-618.99627087,0.00032877,7]
[378691681,1754958755799,-500.0,0.00032877,7]
[378691682,1754958755808,-500.0,0.00032877,7]
[378691683,1754958755819,-500.0,0.00032877,7]
[378691684,1754958755828,-500.0,0.00032877,7]
[378691685,1754958755837,-500.0,0.00032877,7]
[378691686,1754958755846,-500.0,0.00032877,7]
[378691687,1754958755855,-500.0,0.00032877,7]
[378691688,1754958755866,-500.0,0.00032877,7]
[378691689,1754958755875,-500.0,0.00032877,7]
[378691690,1754958755884,-500.0,0.00032877,7]
[378691691,1754958755894,-500.0,0.00032877,7]
[378691692,1754958755904,-500.0,0.00032877,7]
[378691693,1754958755913,-500.0,0.00032877,7]
[378691694,1754958755923,-500.0,0.00032877,7]
[378691695,1754958755931,-500.0,0.00032877,7]
[378691696,1754958755941,-500.0,0.00032877,7]
[378691697,1754958755950,-500.0,0.00032877,7]
[378691698,1754958755960,-500.0,0.00032877,7]
[378691699,1754958755969,-500.0,0.00032877,7]
[378691700,1754958755979,-500.0,0.00032877,7]
[378691701,1754958755988,-500.0,0.00032877,7]
[378691702,1754958755998,-500.0,0.00032877,7]
[378691703,1754958756009,-500.0,0.00032877,7]
[378691704,1754958756018,-500.0,0.00032877,7]
[378691705,1754958756027,-500.0,0.00032877,7]
[378691706,1754958756036,-18478.96597034,0.00032886,19]
[378691707,1754958756046,-433059.82150144,0.00033,2]
[378691708,1754958756055,-24205.92228349,0.00033,2]
[378691709,1754958756065,-10000.0,0.00033,14]
[378691710,1754958756075,-400.0,0.00033,120]
[378691711,1754958756084,-42384.92896255,0.00033,9]
[378691712,1754958756094,-352.29,0.00033,2]
[378691713,1754958756103,-900.0,0.00033,34]
[378691714,1754958756113,-642.49848135,0.00033,2]
[378691715,1754958756122,-536.173746,0.00033,14]
[378691716,1754958756131,-219.0035999,0.000331,2]
[378691717,1754958756140,-223.58,0.0003315,10]
[378691718,1754958756150,-930.0,0.00033151,2]
[378691719,1754958756159,-225.79,0.00033165,2]
[378691720,1754958756169,-404.14,0.00033278,30]
[378691721,1754958756178,-152.0,0.0003331,17]
[378691722,1754958756187,-2104.88,0.000334,30]
[378691723,1754958756197,-930.0,0.00033425,2]
[378691724,1754958756206,-500.0,0.00033457,15]
[378691725,1754958756215,-20134.28209155,0.0003347,2]
[378691726,1754958756225,-1183.51415658,0.000335,2]
[378691727,1754958756234,-18478.96597034,0.00033552,20]
[378691728,1754958756243,-400.0,0.00033561,120]
[378691729,1754958756253,-5826.88,0.00033598,2]
[378691730,1754958756262,-1000.0,0.000336,120]
[378691731,1754958756271,-223.58,0.00033698,11]
[378691732,1754958756283,-930.0,0.00033699,2]
[378691733,1754958756292,-178.0,0.000338,8]
[378691734,1754958756302,-152.0,0.00033841,18]
[378691735,1754958756312,-518.47452525,0.00033878,7]
[378691736,1754958756322,-1000.0,0.000339,30]
[378691737,1754958756331,-1000.0,0.000339,30]
[378691738,1754958756341,-1000.0,0.000339,30]
[378691739,1754958756351,-1000.0,0.000339,30]
[378691740,1754958756360,-1000.0,0.000339,30]
[378691741,1754958756370,-657.73898229,0.00033939,60]
[378691742,1754958756380,-930.0,0.00033973,2]
[378691743,1754958756389,-976.96,0.00034,2]
[378691744,1754958756398,-170.0,0.00034,120]
[378691745,1754958756408,-900.0,0.00034,35]
[378691746,1754958756418,-1000.0,0.00034,120]
[378691747,1754958756427,-164.43858634,0.00034,2]
[378691748,1754958756437,-166.37276497,0.00034076,3]
[378691749,1754958756446,-900.0,0.00034152,7]
[378691750,1754958756455,-1300.0,0.00034152,7]
[378691751,1754958756465,-10000.0,0.000342,14]
[378691752,1754958756474,-18478.96597034,0.00034217,22]
[378691753,1754958756484,-370.91026638,0.00034225,2]
[378691754,1754958756494,-160.0,0.00034232,2]
[378691755,1754958756504,-223.58,0.00034246,12]
[378691756,1754958756514,-3134.2,0.00034246,120]
[378691757,1754958756523,-302466.93906095,0.00034246,2]
[378691758,1754958756533,-930.0,0.00034247,2]
[378691759,1754958756543,-152.0,0.00034372,19]
[378691760,1754958756553,-1000.0,0.00034384,31]
[378691761,1754958756562,-1691.17195255,0.0003449,2]
[378691762,1754958756572,-1000.0,0.000345,120]
[378691763,1754958756583,-1000.0,0.000345,90]
[378691764,1754958756593,-7665.48,0.000345,14]
[378691765,1754958756603,-300.0,0.000345,2]
[378691766,1754958756613,-300.0,0.000345,2]
[378691767,1754958756622,-300.0,0.000345,2]
[378691768,1754958756632,-300.0,0.000345,2]
[378691769,1754958756642,-331.81154052,0.000345,2]
[378691770,1754958756652,-930.0,0.00034521,2]
[378691771,1754958756662,-1553.0,0.00034564,120]
[378691772,1754958756673,-156.55,0.00034565,60]
[378691773,1754958756682,-500.0,0.00034567,15]
[378691774,1754958756692,-1500.0,0.00034567,31]
[378691775,1754958756702,-2104.88,0.000346,30]
[378691776,1754958756711,-156.55,0.00034665,60]
[378691777,1754958756721,-200.0,0.0003469,120]
[378691778,1754958756730,-1295.0,0.0003469,2]
[378691779,1754958756740,-598.0,0.0003469,2]
[378691780,1754958756750,-1042.0,0.0003469,2]
[378691781,1754958756759,-2027.0,0.0003469,2]
[378691782,1754958756769,-565.0,0.0003469,2]
[378691783,1754958756779,-1171.0,0.0003469,2]
[378691784,1754958756788,-6082.0,0.0003469,2]
[378691785,1754958756798,-3367.0,0.0003469,2]
[378691786,1754958756808,-716.0,0.0003469,2]
[378691787,1754958756820,-156.55,0.00034765,60]
[378691788,1754958756830,-223.58,0.00034794,13]
[378691789,1754958756839,-930.0,0.00034795,2]
[378691790,1754958756849,-300.0,0.000348,10]
[378691791,1754958756859,-47456.00401393,0.0003482,2]
[378691792,1754958756868,-156.55,0.00034865,60]
[378691793,1754958756877,-18478.96597034,0.00034883,23]
[378691794,1754958756887,-15369.31,0.000349,7]
[378691795,1754958756896,-152.0,0.00034903,20]
[378691796,1754958756906,-150.0,0.00034958,30]
[378691797,1754958756915,-1216.95497124,0.00034958,30]
[378691798,1754958756925,-156.55,0.00034965,60]
[378691799,1754958756934,-1751.4765983,0.00034987,120]
[378691800,1754958756943,-1020.0,0.0003499,120]
[378691801,1754958756953,-10621.3565785,0.00034999,2]
[378691802,1754958756963,-2000.0,0.00035,7]
[378691803,1754958756972,-245.85,0.00035,2]
[378691804,1754958756982,-1209.56949517,0.00035,2]
[378691805,1754958756991,-383.75769168,0.00035,30]
[378691806,1754958757003,-900.0,0.00035,36]
[378691807,1754958757012,-3900.0,0.00035,7]
[378691808,1754958757022,-229.64221179,0.00035,120]
[378691809,1754958757031,-400.0,0.00035,120]
[378691810,1754958757041,-258.0,0.00035,120]
[378691811,1754958757051,-10636.80650699,0.00035,2]
[378691812,1754958757061,-217.0,0.00035,120]
[378691813,1754958757072,-240.0,0.00035,5]
[378691814,1754958757083,-164.0,0.00035,30]
[378691815,1754958757092,-642.49848135,0.00035,2]
[378691816,1754958757102,-150.0,0.00035,5]
[378691817,1754958757113,-310.49,0.00035,2]
[378691818,1754958757124,-4000.0,0.00035,4]
[378691819,1754958757134,-150.35689025,0.00035,120]
[378691820,1754958757146,-71163.38748422,0.00035,35]
[378691821,1754958757155,-4500.07290509,0.00035,2]
[378691822,1754958757165,-2000.0,0.00035,120]
[378691823,1754958757175,-5826.88,0.0003504,2]
[378691824,1754958757185,-156.55,0.00035065,60]
[378691825,1754958757195,-1591.7875,0.00035068,22]
[378691826,1754958757205,-930.0,0.00035069,2]
[378691827,1754958757215,-1034.30819792,0.00035093,7]
[378691828,1754958757227,-404.14,0.00035157,60]
[378691829,1754958757238,-7928.04607851,0.00035162,30]
[378691830,1754958757248,-156.55,0.00035165,60]
[378691831,1754958757258,-150.0,0.00035229,120]
[378691832,1754958757268,-150.0,0.00035231,120]
[378691833,1754958757277,-156.55,0.00035265,60]
[378691834,1754958757287,-150.0,0.00035289,120]
[378691835,1754958757297,-2000.0,0.000353,2]
[378691836,1754958757306,-150.0,0.0003534,120]
[378691837,1754958757316,-223.58,0.00035342,14]
[378691838,1754958757325,-930.0,0.00035343,2]
[378691839,1754958757335,-500.0,0.0003536,2]
[378691840,1754958757345,-156.55,0.00035365,60]
[378691841,1754958757355,-1000.0,0.000354,120]
[378691842,1754958757365,-152.0,0.00035434,21]
[378691843,1754958757375,-156.55,0.00035465,60]
[378691844,1754958757385,-513.0,0.00035504,27]
[378691845,1754958757395,-18478.96597034,0.00035548,25]
[378691846,1754958757405,-150.0,0.00035563,120]
[378691847,1754958757415,-156.55,0.00035565,60]
[378691848,1754958757425,-306.09224244,0.00035589,17]
[378691849,1754958757435,-384.63394623,0.00035594,2]
[378691850,1754958757445,-160.0,0.00035601,2]
[378691851,1754958757455,-700.0,0.00035616,120]
[378691852,1754958757465,-700.0,0.00035616,120]
[378691853,1754958757476,-700.0,0.00035616,120]
[378691854,1754958757486,-700.0,0.00035616,120]
[378691855,1754958757496,-700.0,0.00035616,120]
[378691856,1754958757507,-700.0,0.00035616,120]
[378691857,1754958757516,-313.72921866,0.00035616,120]
[378691858,1754958757526,-4000.0,0.00035616,30]
[378691859,1754958757536,-1000.0,0.00035616,5]
[378691860,1754958757546,-930.0,0.00035617,2]
[378691861,1754958757556,-150.0,0.00035631,120]
[378691862,1754958757566,-150.0,0.00035646,120]
[378691863,1754958757576,-150.0,0.00035652,120]
[378691864,1754958757586,-156.55,0.00035665,60]
[378691865,1754958757596,-500.0,0.00035666,15]
[378691866,1754958757606,-156.55,0.00035765,60]
[378691867,1754958757616,-900.0,0.00035796,7]
[378691868,1754958757626,-1300.0,0.00035796,7]
[378691869,1754958757635,-300.0,0.000358,12]
[378691870,1754958757645,-2104.88,0.000358,30]
[378691871,1754958757655,-156.55,0.00035865,60]
[378691872,1754958757666,-150.0,0.00035887,120]
[378691873,1754958757675,-223.58,0.0003589,15]
[378691874,1754958757685,-930.0,0.00035891,2]
[378691875,1754958757695,-1721.9917117,0.000359,120]
[378691876,1754958757704,-2559.37372453,0.00035949,42]
[378691877,1754958757714,-156.57828878,0.00035965,60]
[378691878,1754958757723,-152.0,0.00035965,22]
[378691879,1754958757733,-155.0,0.00035973,83]
[378691880,1754958757743,-100000.0,0.00036,30]
[378691881,1754958757753,-150.0,0.00036,90]
[378691882,1754958757763,-160.0,0.00036,120]
[378691883,1754958757774,-900.0,0.00036,37]
[378691884,1754958757784,-1000.0,0.00036,120]
[378691885,1754958757794,-740.0,0.00036,120]
[378691886,1754958757804,-3450000.00000002,0.00036,2]
[378691887,1754958757815,-3000.0,0.00036,120]
[378691888,1754958757827,-164.0,0.00036,30]
[378691889,1754958757837,-4231.56664191,0.00036037,8]
[378691890,1754958757847,-150.0,0.00036065,120]
[378691891,1754958757858,-930.0,0.00036165,2]
[378691892,1754958757869,-18478.96597034,0.00036214,26]
[378691893,1754958757879,-1420.72230987,0.00036352,120]
[378691894,1754958757889,-223.58,0.00036438,16]
[378691895,1754958757899,-930.0,0.00036439,2]
[378691896,1754958757910,-150.0,0.00036477,120]
[378691897,1754958757920,-5826.88,0.00036482,2]
[378691898,1754958757930,-152.0,0.00036496,23]
[378691899,1754958757940,-195.05215906,0.000365,120]
[378691900,1754958757950,-2000.0,0.000365,60]
[378691901,1754958757960,-150.0,0.00036522,120]
[378691902,1754958757970,-165.85,0.0003653,120]
[378691903,1754958757979,-19110.4646114,0.000366,2]
[378691904,1754958757989,-690.9,0.0003666,15]
[378691905,1754958757999,-930.0,0.00036713,2]
[378691906,1754958758009,-327.71226549,0.00036719,2]
[378691907,1754958758019,-155.96054365,0.0003675,120]
[378691908,1754958758030,-300.0,0.000368,13]
[378691909,1754958758040,-463.05,0.000368,60]
[378691910,1754958758050,-422000.73894257,0.000368,120]
[378691911,1754958758062,-150.0,0.00036825,120]
[378691912,1754958758072,-150.0,0.00036837,120]
[378691913,1754958758084,-1028.69506669,0.00036839,30]
[378691914,1754958758095,-3501.4605569,0.0003686,2]
[378691915,1754958758106,-18478.96597034,0.0003688,27]
[378691916,1754958758117,-51812.27,0.0003688,120]
[378691917,1754958758129,-1604.1942658,0.00036888,60]
[378691918,1754958758139,-225.4368,0.00036888,7]
[378691919,1754958758148,-186.0,0.000369,120]
[378691920,1754958758158,-218.93822032,0.000369,120]
[378691921,1754958758168,-13819.57196143,0.0003691,2]
[378691922,1754958758178,-398.86540225,0.00036963,2]
[378691923,1754958758200,-160.0,0.0003697,2]
[378691924,1754958758209,-223.58,0.00036986,17]
[378691925,1754958758218,-3134.2,0.00036986,120]
[378691926,1754958758228,-930.0,0.00036987,2]
[378691927,1754958758237,-229187.3848473,0.00036995,3]
[378691928,1754958758246,-1000.0,0.00036999,31]
[378691929,1754958758256,-727.3233766,0.00037,120]
[378691930,1754958758265,-900.0,0.00037,38]
[378691931,1754958758274,-2027.0,0.00037,120]
[378691932,1754958758283,-715.0,0.00037,30]
[378691933,1754958758292,-100000.0,0.00037,30]
[378691934,1754958758302,-510.38453454,0.00037,120]
[378691935,1754958758311,-496.31,0.00037,120]
[378691936,1754958758320,-1000.0,0.00037,30]
[378691937,1754958758330,-11714.45063958,0.00037,14]
[378691938,1754958758339,-386.0929776,0.00037,120]
[378691939,1754958758349,-1000.0,0.00037,120]
[378691940,1754958758358,-33516.92844398,0.00037,30]
[378691941,1754958758643,-367.21394596,0.00037,30]
[378691942,1754958758654,-2500.0,0.00037,2]
[378691943,1754958758664,-826859.87381409,0.00037,3]
[378691944,1754958758673,-206395.79921861,0.00037,120]
[378691945,1754958758683,-25402.69566177,0.00037,30]
[378691946,1754958758693,-150.0,0.00037,5]
[378691947,1754958758702,-2104.88,0.00037,120]
[378691948,1754958758712,-300.0,0.00037005,82]
[378691949,1754958758722,-204.39842919,0.00037017,30]
[378691950,1754958758731,-152.0,0.00037027,24]
[378691951,1754958758741,-150.43651466,0.00037032,120]
[378691952,1754958758751,-50000.0,0.00037036,30]
[378691953,1754958758760,-50000.0,0.00037036,31]
[378691954,1754958758770,-50000.0,0.00037036,32]
[378691955,1754958758780,-50000.0,0.00037036,33]
[378691956,1754958758789,-50000.0,0.00037036,34]
[378691957,1754958758799,-200.0,0.00037036,120]
[378691958,1754958758809,-950.0,0.00037037,18]
[378691959,1754958758822,-2496.4704575,0.00037037,2]
[378691960,1754958758831,-4295.73171697,0.00037037,2]
[378691961,1754958758840,-376.73093613,0.00037037,2]
[378691962,1754958758850,-163.9,0.00037037,2]
[378691963,1754958758859,-394.45180472,0.00037037,2]
[378691964,1754958758869,-1210.0,0.00037037,2]
[378691965,1754958758879,-709.65170316,0.00037037,2]
[378691966,1754958758888,-365.43658604,0.00037037,2]
[378691967,1754958758898,-351.44854747,0.00037037,2]
[378691968,1754958758908,-2809.52599378,0.00037037,2]
[378691969,1754958758918,-768.52043363,0.00037037,2]
[378691970,1754958758927,-1533.94732356,0.00037037,2]
[378691971,1754958758937,-1038.85737158,0.00037037,2]
[378691972,1754958758946,-349.66809013,0.00037037,2]
[378691973,1754958758956,-2476.70827614,0.00037037,2]
[378691974,1754958758966,-2728.75668336,0.00037037,2]
[378691975,1754958758977,-152.68354591,0.00037037,2]
[378691976,1754958758986,-1692.49981258,0.00037037,2]
[378691977,1754958758996,-251.40270564,0.00037037,2]
[378691978,1754958759007,-165.91782555,0.00037037,2]
[378691979,1754958759017,-659.08786221,0.00037037,2]
[378691980,1754958759026,-1272.68245882,0.00037037,2]
[378691981,1754958759036,-245.55785386,0.00037037,2]
[378691982,1754958759046,-163.21657889,0.00037037,2]
[378691983,1754958759056,-1050.94216039,0.00037037,2]
[378691984,1754958759065,-1323.01326708,0.00037037,2]
[378691985,1754958759075,-2215.1549703,0.00037037,2]
[378691986,1754958759084,-1936.88026291,0.00037037,2]
[378691987,1754958759093,-185.72977717,0.00037037,2]
[378691988,1754958759103,-643.0,0.00037037,2]
[378691989,1754958759113,-979.06562239,0.00037037,2]
[378691990,1754958759122,-1788.18874835,0.00037037,2]
[378691991,1754958759131,-578.06581198,0.00037037,2]
[378691992,1754958759141,-1851.46112017,0.00037037,2]
[378691993,1754958759151,-3270.36143109,0.00037037,2]
[378691994,1754958759161,-176.92602452,0.00037037,2]
[378691995,1754958759171,-550.0,0.00037037,2]
[378691996,1754958759180,-1478.96912422,0.00037037,2]
[378691997,1754958759190,-1017.04575752,0.00037037,2]
[378691998,1754958759200,-1606.69894289,0.00037037,2]
[378691999,1754958759209,-230.98782932,0.00037037,2]
[378692000,1754958759219,-175.30086125,0.00037037,2]
[378692001,1754958759228,-492.21755362,0.00037037,3]
[378692002,1754958759238,-378.72841274,0.00037037,2]
[378692003,1754958759247,-1482.89791996,0.00037037,2]
[378692004,1754958759257,-1042.65946866,0.00037037,2]
[378692005,1754958759269,-1187.6017526,0.00037037,2]
[378692006,1754958759279,-3082.70094007,0.00037037,2]
[378692007,1754958759289,-568.18409199,0.00037037,2]
[378692008,1754958759298,-150.0,0.00037037,2]
[378692009,1754958759308,-631.91163754,0.00037037,2]
[378692010,1754958759318,-216.62438433,0.00037037,2]
[378692011,1754958759330,-1076.22112549,0.00037037,2]
[378692012,1754958759339,-2500.0,0.00037037,2]
[378692013,1754958759348,-584.25657176,0.00037037,2]
[378692014,1754958759360,-345.13592375,0.00037037,2]
[378692015,1754958759369,-1887.56535497,0.00037037,2]
[378692016,1754958759378,-1100.0,0.00037037,2]
[378692017,1754958759390,-919.91013246,0.00037037,2]
[378692018,1754958759399,-485.66481936,0.00037037,2]
[378692019,1754958759408,-171.91608441,0.00037037,2]
[378692020,1754958759418,-1600.84830766,0.00037037,2]
[378692021,1754958759427,-552.9630048,0.00037037,2]
[378692022,1754958759437,-1020.40360173,0.00037037,2]
[378692023,1754958759448,-367.91260952,0.00037037,2]
[378692024,1754958759457,-2223.12724957,0.00037037,2]
[378692025,1754958759467,-1852.38637283,0.00037037,2]
[378692026,1754958759476,-1127.75087865,0.00037037,2]
[378692027,1754958759487,-406.18238064,0.00037037,2]
[378692028,1754958759496,-1721.36162439,0.00037037,2]
[378692029,1754958759507,-204.69787416,0.00037037,2]
[378692030,1754958759516,-871.24657403,0.00037037,2]
[378692031,1754958759526,-285.37616002,0.00037037,2]
[378692032,1754958759536,-3073.9800113,0.00037037,2]
[378692033,1754958759545,-2192.48262249,0.00037037,2]
[378692034,1754958759554,-1045.19020907,0.00037037,2]
[378692035,1754958759563,-464.63752854,0.00037037,2]
[378692036,1754958759572,-150.0,0.00037037,2]
[378692037,1754958759582,-160.0,0.00037037,2]
[378692038,1754958759591,-1000.0,0.00037037,2]
[378692039,1754958759600,-159.36272727,0.00037037,2]
[378692040,1754958759610,-501.21668443,0.00037037,2]
[378692041,1754958759619,-201.2179608,0.00037037,2]
[378692042,1754958759628,-401.00554264,0.00037037,2]
[378692043,1754958759638,-3389.0,0.00037037,14]
[378692044,1754958759648,-236.01582624,0.00037037,7]
[378692045,1754958759657,-309.02941111,0.00037037,7]
[378692046,1754958759667,-1004.36956592,0.00037037,7]
[378692047,1754958759676,-1025.68276714,0.00037037,7]
[378692048,1754958759685,-4268.84423319,0.00037037,2]
[378692049,1754958759694,-242.25813185,0.00037037,7]
[378692050,1754958759704,-1328.999999,0.00037037,120]
[378692051,1754958759713,-5231.48520681,0.00037037,2]
[378692052,1754958759722,-539.46391588,0.00037037,7]
[378692053,1754958759731,-3450.25198557,0.00037037,2]
[378692054,1754958759740,-5064.69069071,0.00037037,2]
[378692055,1754958759749,-1049.7446151,0.00037037,7]
[378692056,1754958759760,-470.76719529,0.00037037,7]
[378692057,1754958759769,-162.86185172,0.00037037,120]
[378692058,1754958759779,-3353.39571646,0.00037037,2]
[378692059,1754958759788,-604.91495856,0.00037037,120]
[378692060,1754958759797,-5049.31381642,0.00037037,2]
[378692061,1754958759806,-4622.82252355,0.00037037,2]
[378692062,1754958759817,-883.83265982,0.00037037,2]
[378692063,1754958759827,-1000.0,0.00037037,30]
[378692064,1754958759836,-187.74146226,0.00037037,120]
[378692065,1754958759845,-50000.0,0.00037037,30]
[378692066,1754958759854,-50000.0,0.00037037,31]
[378692067,1754958759865,-50000.0,0.00037037,32]
[378692068,1754958759874,-50000.0,0.00037037,33]
[378692069,1754958759883,-50000.0,0.00037037,34]
[378692070,1754958759893,-50000.0,0.00037037,35]
[378692071,1754958759902,-50000.0,0.00037037,36]
[378692072,1754958759913,-50000.0,0.00037037,37]
[378692073,1754958759922,-50000.0,0.00037037,38]
[378692074,1754958759931,-50000.0,0.00037037,39]
[378692075,1754958759940,-507.73586301,0.00037037,30]
[378692076,1754958759950,-219.7827969,0.00037037,120]
[378692077,1754958759959,-58832.81190392,0.00037037,30]
[378692078,1754958759968,-246.48558463,0.00037037,120]
[378692079,1754958759977,-455.61032547,0.00037037,30]
[378692080,1754958759986,-2462.52710294,0.00037037,75]
[378692081,1754958759996,-220.52421308,0.00037037,7]
[378692082,1754958760007,-153.7898691,0.00037037,7]
[378692083,1754958760016,-26359.0,0.00037037,30]
[378692084,1754958760026,-269.93646178,0.00037037,60]
[378692085,1754958760036,-801.65761125,0.00037037,120]
[378692086,1754958760045,-187.0,0.00037037,120]
[378692087,1754958760055,-559494.74714271,0.00037037,30]
[378692088,1754958760065,-84567.27407072,0.00037037,7]
[378692089,1754958760075,-23257.17693254,0.00037037,30]
[378692090,1754958760084,-510.15338495,0.00037037,30]
[378692091,1754958760093,-929.76921281,0.00037037,30]
[378692092,1754958760102,-1253.6141893,0.00037037,120]
[378692093,1754958760112,-755.87840255,0.00037037,120]
[378692094,1754958760122,-6477.1676439,0.00037037,30]
[378692095,1754958760131,-87923.62472391,0.00037037,30]
[378692096,1754958760140,-550.25862903,0.00037037,2]
[378692097,1754958760150,-25217.99488898,0.00037037,4]
[378692098,1754958760159,-208.81511913,0.00037037,3]
[378692099,1754958760169,-18628.27589037,0.00037037,2]
[378692100,1754958760178,-160.0,0.00037037,2]
[378692101,1754958760187,-163.46844331,0.00037037,3]
[378692102,1754958760196,-12127.0,0.00037037,60]
[378692103,1754958760205,-79979.79871393,0.00037037,120]
[378692104,1754958760214,-388.24,0.00037037,120]
[378692105,1754958760223,-1600.0,0.00037037,120]
[378692106,1754958760233,-500.0,0.00037037,120]
[378692107,1754958760242,-521.1838,0.00037037,120]
[378692108,1754958760251,-463.87125246,0.00037037,10]
[378692109,1754958760260,-812.39174529,0.00037037,30]
[378692110,1754958760269,-500.0,0.00037037,20]
[378692111,1754958760278,-3000.0,0.00037037,31]
[378692112,1754958760287,-7621.0,0.00037037,14]
[378692113,1754958760296,-1905.86774073,0.00037037,7]
[378692114,1754958760306,-2000.0,0.00037037,5]
[378692115,1754958760316,-1000.0,0.00037037,3]
[378692116,1754958760326,-700.0,0.00037037,3]
[378692117,1754958760335,-6919.30679804,0.00037037,2]
[378692118,1754958760344,-7786.85692622,0.00037037,2]
[378692119,1754958760354,-9314.87667903,0.00037037,2]
[378692120,1754958760363,-8101.36401015,0.00037037,2]
[378692121,1754958760373,-12943.31440159,0.00037037,2]
[378692122,1754958760382,-9836.12388772,0.00037037,2]
[378692123,1754958760391,-10791.05477503,0.00037037,2]
[378692124,1754958760400,-15064.33503295,0.00037037,2]
[378692125,1754958760409,-6000.0,0.00037037,2]
[378692126,1754958760418,-15184.19956727,0.00037037,2]
[378692127,1754958760428,-7835.71429846,0.00037037,2]
[378692128,1754958760438,-5570.71545392,0.00037037,2]
[378692129,1754958760447,-14917.49783822,0.00037037,2]
[378692130,1754958760457,-7048.93549858,0.00037037,2]
[378692131,1754958760467,-11072.12872182,0.00037037,2]
[378692132,1754958760479,-5739.40648516,0.00037037,2]
[378692133,1754958760488,-12732.61188154,0.00037037,2]
[378692134,1754958760497,-28415.81125863,0.00037037,2]
[378692135,1754958760507,-5100.0,0.00037037,36]
[378692136,1754958760517,-8047.08959061,0.00037037,7]
[378692137,1754958760526,-3765.97923861,0.00037037,7]
[378692138,1754958760536,-25762.94405836,0.00037037,7]
[378692139,1754958760546,-6750.48363742,0.00037037,7]
[378692140,1754958760556,-5730.64260394,0.00037037,30]
[378692141,1754958760565,-201.0,0.00037037,120]
[378692142,1754958760575,-1890.00346969,0.00037037,120]
[378692143,1754958760584,-2000.0,0.00037037,2]
[378692144,1754958760593,-2003.66829157,0.00037037,7]
[378692145,1754958760602,-1000.0,0.00037037,2]
[378692146,1754958760611,-1084.0,0.00037037,30]
[378692147,1754958760620,-1084.0,0.00037037,30]
[378692148,1754958760630,-1084.0,0.00037037,30]